bitfinex-derivatives/quotes_ETHF0:USTF0_20250421
["timestamp","ask_amount","ask_price","bid_price","bid_amount"]
[1745237629773,11.09981,1631.7,1631.6,42.02576]
[1745237630474,12.3255,1631.7,1631.6,42.02576]
[1745237630776,11.09981,1631.7,1631.6,42.02576]
[1745237631265,12.3255,1631.7,1631.6,42.02576]
[1745237631469,11.09981,1631.7,1631.6,42.02576]
[1745237631776,12.3255,1631.7,1631.6,42.02576]
[1745237631964,11.09981,1631.7,1631.6,42.02576]
[1745237632376,12.3255,1631.7,1631.6,42.02576]
[1745237632573,9.47701,1631.7,1631.6,42.02576]
[1745237632870,12.3905,1631.7,1631.6,42.02576]
[1745237633076,11.16481,1631.7,1631.6,45.23356]
[1745237633379,11.16481,1631.7,1631.6,46.07906]
[1745237633568,11.16481,1631.7,1631.6,42.87126]
[1745237637473,11.16481,1631.7,1631.6,46.07906]
[1745237637674,9.47701,1631.7,1631.6,46.07906]
[1745237639378,9.47701,1631.7,1631.6,46.90523998]
[1745237640570,11.14621,1631.7,1631.6,46.90564577]
[1745237641675,11.14621,1631.7,1631.6,46.07906]
[1745237641879,11.14621,1631.7,1631.6,46.90608001]
[1745237643577,11.14621,1631.7,1631.6,46.90623878]
[1745237646091,11.14621,1631.7,1631.6,43.69843878]
[1745237647285,11.14621,1631.7,1631.6,43.69838423]
[1745237647683,23.32671,1631.7,1631.2,3.21699033]
[1745237647886,1.22591,1631.4,1631.3,0.82753208]
[1745237648186,1.22591,1631.4,1631.3,40.8]
[1745237648477,4.55692,1631.4,1631.3,40.8]
[1745237649085,6.30612,1631.4,1631.3,40.8]
[1745237649275,15.65992,1631.4,1631.3,40.8]
[1745237649587,24.82092,1631.4,1631.3,40.8]
[1745237650488,28.93715,1631.4,1631.3,40.8]
[1745237651777,1.22599,1631.3,1631.2,0.00919033]
[1745237651989,10.36913,1631.3,1631.2,0.00919033]
[1745237652287,15.36913,1631.3,1631.2,40.80919033]
[1745237652684,15.36913,1631.3,1631.2,0.00919033]
[1745237653285,21.51513,1631.3,1631.2,0.00919033]
[1745237653484,21.61803289,1631.3,1631.2,0.00919033]
[1745237653680,12.50180289,1631.3,1631.2,0.00919033]
[1745237653887,11.17291,1631.3,1631.2,1.23525033]
[1745237654088,12.3989,1631.3,1631.2,1.23525033]
[1745237654387,11.17291,1631.3,1631.2,1.23525033]
[1745237654988,12.3989,1631.3,1631.2,1.23525033]
[1745237655290,11.17291,1631.3,1631.2,2.91265033]
[1745237655485,12.3989,1631.3,1631.2,2.91265033]
[1745237655889,12.3989,1631.3,1631.2,1.68659033]
[1745237656092,12.3989,1631.3,1631.2,0.00919033]
[1745237661894,12.3989,1631.3,1631.2,1.23525033]
[1745237662095,12.3989,1631.3,1631.2,2.90495033]
[1745237662293,12.3989,1631.3,1631.2,1.67889033]
[1745237662593,12.3989,1631.3,1631.2,2.90495033]
[1745237662996,12.3989,1631.3,1631.2,1.67889033]
[1745237665794,12.3989,1631.3,1631.2,0.00919033]
[1745237667792,10.703,1631.3,1631.2,1.23525033]
[1745237668094,10.703,1631.3,1631.2,0.00919033]
[1745237668297,12.4079,1631.3,1631.2,0.00919033]
[1745237669195,12.4079,1631.3,1631.2,2.89565033]
[1745237669496,12.4079,1631.3,1631.2,1.66959033]
[1745237670099,4.11623,1631.4,1631.2,9.87739033]
[1745237670285,0.0144,1631.5,1631.4,1.22591]
[1745237670485,0.90741,1631.5,1631.4,1.22591]
[1745237670690,1.22572,1631.7,1631.6,1.22576]
[1745237670891,2.11873,1631.7,1631.5,2.88617]
[1745237671088,0.89301,1631.6,1631.5,2.88617]
[1745237671396,2.11877,1631.6,1631.5,2.88617]
[1745237671999,2.11877,1631.6,1631.5,1.6604]
[1745237672186,10.04257,1631.6,1631.5,1.6604]
[1745237672393,7.03901,1631.6,1631.5,2.88624]
[1745237672885,7.03901,1631.6,1631.5,1.6604]
[1745237673091,7.03901,1631.6,1631.5,2.88624]
[1745237676004,6.146,1631.6,1631.5,7.88624]
[1745237676502,6.146,1631.6,1631.5,2.88624]
[1745237677798,7.03901,1631.6,1631.5,2.88624]
[1745237677993,8.26477,1631.6,1631.5,1.6604]
[1745237678199,7.03901,1631.6,1631.5,2.88624]
[1745237678604,8.26477,1631.6,1631.5,2.88624]
[1745237678807,7.03901,1631.6,1631.5,2.88624]
[1745237679006,6.146,1631.6,1631.5,2.88624]
[1745237679207,7.03901,1631.6,1631.5,1.22584]
[1745237679606,8.69181,1631.6,1631.5,3.00294]
[1745237679808,7.03901,1631.6,1631.5,3.00294]
[1745237680104,6.146,1631.6,1631.5,3.00294]
[1745237680705,7.03901,1631.6,1631.5,3.00294]
[1745237681006,8.26477,1631.6,1631.5,3.00294]
[1745237681508,7.03901,1631.6,1631.5,3.00294]
[1745237682006,8.70191,1631.6,1631.5,3.00294]
[1745237682206,9.92767,1631.6,1631.5,1.22584]
[1745237682399,9.56481,1631.6,1631.5,1.22584]
[1745237682905,10.79057,1631.6,1631.5,1.22584]
[1745237683210,9.56481,1631.6,1631.5,1.22584]
[1745237684403,6.146,1631.6,1631.5,2.89804]
[1745237687516,7.03901,1631.6,1631.5,2.89804]
[1745237687818,8.76951,1631.6,1631.5,1.22584]
[1745237688221,8.76951,1631.6,1631.5,2.93614]
[1745237688825,9.99529,1631.6,1631.4,4.43365]
[1745237689126,4.30811,1631.5,1631.4,1.22585]
[1745237689521,4.30811,1631.5,1631.4,2.93615]
[1745237690123,10.45411,1631.5,1631.4,2.93615]
[1745237690623,9.60611,1631.5,1631.4,2.93615]
[1745237693817,6.146,1631.5,1631.4,2.93615]
[1745237694019,6.146,1631.5,1631.4,6.14395]
[1745237695128,6.146,1631.5,1631.4,6.93535011]
[1745237695629,6.146,1631.5,1631.4,6.9354888]
[1745237696330,5.8325,1631.5,1631.4,6.9354888]
[1745237697426,5.8325,1631.5,1631.4,6.93624666]
[1745237699029,7.5416,1631.5,1631.4,6.93624666]
[1745237699231,7.5416,1631.5,1631.4,6.93663134]
[1745237699834,8.43461,1631.5,1631.4,6.93663134]
[1745237700828,8.43461,1631.5,1631.4,6.93736131]
[1745237701033,8.43461,1631.5,1631.4,5.22706131]
[1745237701231,9.24701,1631.5,1631.4,5.22706131]
[1745237702131,9.24701,1631.5,1631.4,6.98693243]
[1745237702729,9.24701,1631.5,1631.4,5.22703243]
[1745237703929,9.24701,1631.5,1631.4,4.43365]
[1745237704125,9.24701,1631.5,1631.4,5.22723108]
[1745237704726,9.24701,1631.5,1631.4,2.01943108]
[1745237704932,9.24701,1631.5,1631.4,2.01957993]
[1745237705133,9.24701,1631.5,1631.4,2.01951251]
[1745237705322,9.24701,1631.5,1631.4,1.22585]
[1745237705527,9.24701,1631.5,1631.4,2.01944098]
[1745237705829,9.24701,1631.5,1631.4,1.22585]
[1745237707241,10.08491,1631.5,1631.4,1.22585]
[1745237709038,1.22597,1631.4,1631.2,1.23524033]
[1745237709240,7.07617,1631.4,1631.2,1.23524033]
[1745237709438,0.89301,1631.3,1631.2,1.23524033]
[1745237709739,3.8684,1631.3,1631.2,0.00919033]
[1745237709938,1.22614,1631.1,1631.0,40.8]
[1745237710139,10.57994,1631.1,1631.0,40.8]
[1745237710332,16.47295,1631.1,1631.0,40.8]
[1745237710533,19.03725,1631.1,1630.9,1.22628]
[1745237710731,2.64241,1631.0,1630.9,1.22628]
[1745237711033,3.86862,1631.0,1630.9,42.02628]
[1745237711233,10.01462,1631.0,1630.9,42.02628]
[1745237711634,10.01462,1631.0,1630.9,1.22628]
[1745237712539,10.01462,1631.0,1630.8,50.2403228]
[1745237712740,4.7434,1630.9,1630.8,42.03549033]
[1745237712943,4.7434,1630.9,1630.8,40.80919033]
[1745237713147,14.0972,1630.9,1630.8,40.80919033]
[1745237713347,19.09725,1630.9,1630.7,1.22644]
[1745237713533,2.67221,1630.8,1630.7,1.22644]
[1745237714342,8.81821,1630.8,1630.7,42.02644]
[1745237714541,8.81821,1630.8,1630.7,1.22644]
[1745237714839,8.83261,1630.8,1630.7,1.22644]
[1745237715938,8.83261,1630.8,1630.6,42.03564033]
[1745237716244,3.40641,1630.7,1630.6,42.03564033]
[1745237716743,0.89301,1630.7,1630.6,42.03564033]
[1745237716938,0.89301,1630.7,1630.6,43.80894033]
[1745237717136,7.03901,1630.7,1630.6,43.80894033]
[1745237718037,8.68531,1630.7,1630.6,43.80894033]
[1745237718646,8.68531,1630.7,1630.6,42.03564033]
[1745237719246,8.68531,1630.7,1630.6,43.75734033]
[1745237720649,8.68531,1630.7,1630.6,42.03564033]
[1745237721043,9.91175,1630.7,1630.6,40.80919033]
[1745237721945,8.68531,1630.7,1630.6,40.80919033]
[1745237722246,8.68531,1630.7,1630.6,42.03570033]
[1745237722848,9.91175,1630.7,1630.6,40.80919033]
[1745237723048,8.68531,1630.7,1630.6,42.03570033]
[1745237726551,8.68531,1630.7,1630.6,43.78180033]
[1745237727855,9.91175,1630.7,1630.6,40.80919033]
[1745237728347,9.91175,1630.7,1630.6,42.03570033]
[1745237728550,9.91175,1630.7,1630.6,40.80919033]
[1745237728750,9.91175,1630.7,1630.6,42.03570033]
[1745237731155,13.11955,1630.7,1630.6,42.03570033]
[1745237732457,17.23578,1630.7,1630.6,42.03570033]
[1745237734656,14.02798,1630.7,1630.6,42.03570033]
[1745237735361,17.23578,1630.7,1630.6,42.03570033]
[1745237735561,17.23578,1630.7,1630.6,43.76240033]
[1745237738157,17.23578,1630.7,1630.6,42.53589033]
[1745237738460,17.23578,1630.7,1630.6,43.76240033]
[1745237739370,17.23578,1630.7,1630.6,42.53589033]
[1745237739661,17.23578,1630.7,1630.6,40.80919033]
[1745237740562,17.23578,1630.7,1630.6,42.03570033]
[1745237740757,17.23578,1630.7,1630.6,40.80919033]
[1745237741159,17.23578,1630.7,1630.6,42.03570033]
[1745237742464,17.23578,1630.7,1630.6,40.80919033]
[1745237742868,17.23578,1630.7,1630.6,42.03570033]
[1745237743868,14.02798,1630.7,1630.6,42.03570033]
[1745237744058,17.23578,1630.7,1630.6,42.03570033]
[1745237747969,17.23578,1630.7,1630.6,40.80919033]
[1745237748270,17.23578,1630.7,1630.6,42.03570033]
[1745237748568,17.23578,1630.7,1630.6,44.63010033]
[1745237748768,3.21699033,1631.1,1630.6,49.19465639]
[1745237748966,0.00919033,1631.1,1631.0,1.22621]
[1745237749164,7.04820033,1631.1,1631.0,5.22456168]
[1745237749369,7.04820033,1631.1,1631.0,11.15751]
[1745237749669,7.04820033,1631.1,1631.0,44.61901]
[1745237752070,6.15519033,1631.1,1631.0,52.82681]
[1745237752568,6.15519033,1631.1,1631.0,47.82681]
[1745237758475,7.04820033,1631.1,1631.0,46.6006]
[1745237758777,7.04820033,1631.1,1631.0,47.82681]
[1745237759170,8.79920033,1631.1,1631.0,44.61901]
[1745237761371,10.02534033,1631.1,1631.0,43.3928]
[1745237761573,10.02534033,1631.1,1631.0,40.8]
[1745237761969,1.22628,1631.0,1630.8,6.98351]
[1745237762172,3.81709,1630.9,1630.8,3.2078]
[1745237762372,5.5159,1630.9,1630.8,3.2078]
[1745237762574,4.28961,1630.9,1630.8,4.43416]
[1745237762969,4.28961,1630.9,1630.8,45.23416]
[1745237763276,10.43561,1630.9,1630.8,45.23416]
[1745237763874,7.03901,1630.9,1630.8,45.23416]
[1745237764080,7.03901,1630.9,1630.8,46.11086]
[1745237764668,0.00919033,1631.1,1631.0,1.22621]
[1745237765177,7.04820033,1631.1,1631.0,1.22621]
[1745237765371,7.04820033,1631.1,1631.0,2.93401]
[1745237765568,7.04820033,1631.1,1631.0,43.73401]
[1745237770972,8.27434033,1631.1,1631.0,40.8]
[1745237771275,10.01914033,1631.1,1631.0,40.8]
[1745237771876,1.22632,1630.9,1630.7,0.8407]
[1745237772074,3.3566,1630.8,1630.7,1.22638]
[1745237772274,4.24961,1630.8,1630.7,1.22638]
[1745237772980,0.89301,1630.8,1630.7,43.74438]
[1745237773182,7.03901,1630.8,1630.7,43.74438]
[1745237775177,6.146,1630.8,1630.7,43.74438]
[1745237775783,7.03901,1630.8,1630.7,40.8]
[1745237775980,17.3816,1630.8,1630.7,40.8]
[1745237776282,14.9806,1630.8,1630.7,40.8]
[1745237777583,1.22644,1630.7,1630.6,0.00919033]
[1745237777783,12.91905,1630.7,1630.6,0.00919033]
[1745237778171,19.06505,1630.7,1630.6,0.00919033]
[1745237781686,12.83861,1630.7,1630.6,1.23570033]
[1745237782285,14.06505,1630.7,1630.6,1.23570033]
[1745237783286,12.01721,1630.7,1630.6,1.23570033]
[1745237783584,12.01721,1630.7,1630.6,3.82400033]
[1745237783784,12.01721,1630.7,1630.6,4.67300033]
[1745237783983,8.80941,1630.7,1630.6,4.67300033]
[1745237785687,10.03585,1630.7,1630.6,0.00919033]
[1745237786185,13.24365,1630.7,1630.6,0.00919033]
[1745237788094,17.35988,1630.7,1630.6,0.00919033]
[1745237789189,22.35988,1630.7,1630.6,0.00919033]
[1745237789590,26.52188,1630.7,1630.6,0.00919033]
[1745237789793,1.22651,1630.6,1630.5,2.0]
[1745237790096,7.94969125,1630.6,1630.5,2.0]
[1745237790295,12.94969125,1630.6,1630.5,2.0]
[1745237790993,7.94969125,1630.6,1630.5,2.0]
[1745237791197,19.09569125,1630.6,1630.5,2.0]
[1745237791598,19.09569125,1630.6,1630.5,0.55063]
[1745237791801,2.1196,1630.5,1630.4,3.3e-07]
[1745237791992,7.10106743,1630.5,1630.4,3.3e-07]
[1745237792192,18.24706743,1630.5,1630.4,3.3e-07]
[1745237792592,21.13670743,1630.5,1629.7,2.03426]
[1745237792796,3.2078,1630.2,1629.7,3.87504]
[1745237793103,7.05964,1630.1,1630.0,1.22696]
[1745237793304,12.06888,1630.1,1630.0,1.22696]
[1745237793698,12.06888,1630.1,1630.0,2.90186]
[1745237794099,18.21488,1630.1,1630.0,2.90186]
[1745237794496,1.22696,1630.0,1629.9,0.00919033]
[1745237794699,3.82547,1630.0,1629.9,1.23623033]
[1745237794902,0.89301,1630.0,1629.9,2.91113033]
[1745237795100,7.03901,1630.0,1629.9,2.91113033]
[1745237796089,0.89301,1630.0,1629.9,2.91113033]
[1745237798105,7.03901,1630.0,1629.9,2.91113033]
[1745237799001,8.26597,1630.0,1629.9,1.68409033]
[1745237799195,7.03901,1630.0,1629.9,2.91113033]
[1745237801600,6.146,1630.0,1629.9,7.91113033]
[1745237802101,0.00919033,1630.2,1630.1,1.22689]
[1745237802501,0.90220033,1630.2,1630.1,1.22689]
[1745237802701,0.90220033,1630.2,1630.1,2.91309]
[1745237803108,7.04820033,1630.2,1630.1,2.91309]
[1745237803508,8.27501033,1630.2,1630.1,2.91309]
[1745237804010,10.25600033,1630.2,1630.0,2.85393]
[1745237804210,3.7408,1630.1,1630.0,4.54013]
[1745237804605,2.51391,1630.1,1630.0,4.54013]
[1745237804809,0.89301,1630.1,1630.0,4.54013]
[1745237805203,7.03901,1630.1,1630.0,4.54013]
[1745237806611,8.2659,1630.1,1630.0,4.54013]
[1745237806812,9.9131,1630.1,1630.0,4.54013]
[1745237807309,8.68621,1630.1,1630.0,4.54013]
[1745237807512,8.68621,1630.1,1629.9,0.00919033]
[1745237807513,8.2659,1630.1,1629.9,1.23617033]
[1745237807714,0.89301,1630.0,1629.9,4.58523033]
[1745237808113,7.03901,1630.0,1629.9,4.58523033]
[1745237809114,0.89301,1630.0,1629.9,4.58523033]
[1745237814117,7.03901,1630.0,1629.9,4.58523033]
[1745237816123,7.03901,1630.0,1629.9,3.72493033]
[1745237816620,7.87711,1630.0,1629.9,3.72493033]
[1745237816813,9.64791,1630.0,1629.9,3.72493033]
[1745237817013,10.87487,1630.0,1629.9,3.72493033]
[1745237817314,10.87487,1630.0,1629.9,0.00919033]
[1745237818321,14.08267,1630.0,1629.9,0.00919033]
[1745237819522,12.85571,1630.0,1629.9,1.23623033]
[1745237819710,12.85571,1630.0,1629.9,2.85283033]
[1745237819711,9.64791,1630.0,1629.9,2.85283033]
[1745237820122,9.64791,1630.0,1629.9,3.65973033]
[1745237820425,7.03901,1630.0,1629.9,3.65973033]
[1745237821518,8.69011,1630.0,1629.9,3.65973033]
[1745237822921,9.91707,1630.0,1629.9,3.65973033]
[1745237823127,9.91707,1630.0,1629.9,0.00919033]
[1745237823424,13.12487,1630.0,1629.9,0.00919033]
[1745237824028,11.89791,1630.0,1629.9,1.23623033]
[1745237824325,8.69011,1630.0,1629.9,1.23623033]
[1745237824527,8.69011,1630.0,1629.9,2.93833033]
[1745237825329,8.69011,1630.0,1629.9,1.23623033]
[1745237825721,9.91707,1630.0,1629.9,0.00919033]
[1745237826231,9.91707,1630.0,1629.9,1.23623033]
[1745237827135,9.91707,1630.0,1629.9,0.00919033]
[1745237829432,9.91707,1630.0,1629.9,1.23623033]
[1745237829634,8.69011,1630.0,1629.9,1.23623033]
[1745237830837,9.91707,1630.0,1629.9,1.23623033]
[1745237831135,8.69011,1630.0,1629.9,1.23623033]
[1745237831435,9.91707,1630.0,1629.9,1.23623033]
[1745237831639,8.69011,1630.0,1629.9,1.23623033]
[1745237832237,9.91707,1630.0,1629.9,0.00919033]
[1745237832835,18.12487,1630.0,1629.9,0.00919033]
[1745237833032,17.28587,1630.0,1629.9,0.00919033]
[1745237833226,22.28587,1630.0,1629.9,0.00919033]
[1745237834636,17.28587,1630.0,1629.9,0.00919033]
[1745237838043,21.4021,1630.0,1629.9,0.00919033]
[1745237839746,26.4021,1630.0,1629.9,0.00919033]
[1745237841251,26.4021,1630.0,1629.9,0.02359033]
[1745237841547,26.5050993,1630.0,1629.9,3.3e-07]
[1745237842953,2.12005,1629.9,1629.8,1.57e-06]
[1745237843144,10.9110493,1629.9,1629.8,1.57e-06]
[1745237843450,15.9110493,1629.9,1629.8,1.57e-06]
[1745237843843,15.91105723,1629.9,1629.8,1.57e-06]
[1745237844246,10.80805,1629.9,1629.8,1.57e-06]
[1745237846854,14.92428,1629.9,1629.8,1.57e-06]
[1745237847453,20.02728485,1629.9,1629.8,1.57e-06]
[1745237850354,14.92428,1629.9,1629.8,1.57e-06]
[1745237853955,15.02728313,1629.9,1629.8,1.57e-06]
[1745237854156,14.92428,1629.9,1629.8,1.57e-06]
[1745237854962,15.02728093,1629.9,1629.8,1.57e-06]
[1745237855153,18.23508093,1629.9,1629.8,1.57e-06]
[1745237855352,18.23508317,1629.9,1629.8,1.57e-06]
[1745237856863,18.23508532,1629.9,1629.8,1.57e-06]
[1745237858464,18.2350864,1629.9,1629.8,1.57e-06]
[1745237859663,18.13208,1629.9,1629.8,1.57e-06]
[1745237860067,14.92428,1629.9,1629.8,1.57e-06]
[1745237860363,18.13208,1629.9,1629.8,1.57e-06]
[1745237862466,18.23508425,1629.9,1629.8,1.57e-06]
[1745237863571,18.23508425,1629.9,1629.8,1.57e-06]
[1745237865766,23.23508425,1629.9,1629.8,1.57e-06]
[1745237865968,1.22734,1629.5,1629.4,41.6158]
[1745237866265,18.85737,1629.5,1629.4,41.6158]
[1745237866462,1.22742,1629.4,1629.3,2.6446]
[1745237866669,3.86893,1629.4,1629.3,2.6446]
[1745237867063,7.98516,1629.4,1629.3,42.5605]
[1745237867270,14.13116,1629.4,1629.3,42.5605]
[1745237868074,12.38266,1629.4,1629.3,42.5605]
[1745237868268,12.38266,1629.4,1629.3,48.3877]
[1745237868464,8.26643,1629.4,1629.3,49.61519]
[1745237868671,6.146,1629.4,1629.3,49.61519]
[1745237868871,7.88423089,1630.0,1629.6,1.22727]
[1745237868872,3.2078,1629.7,1629.6,1.22727]
[1745237869070,3.2078,1629.7,1629.6,6.22727]
[1745237869373,10.58099,1629.7,1629.6,6.22727]
[1745237869564,10.58099,1629.7,1629.6,7.93147]
[1745237870362,10.58099,1629.7,1629.6,48.73147]
[1745237873473,9.3538,1629.7,1629.6,48.73147]
[1745237875171,6.146,1629.7,1629.6,48.73147]
[1745237875473,3.708,1629.7,1629.6,48.73147]
[1745237875676,2.27758177,1629.7,1629.6,48.73147]
[1745237875874,1e-08,1629.7,1629.6,48.73147]
[1745237876273,8.55096,1630.1,1630.0,1.22696]
[1745237876575,5.32774,1630.1,1630.0,1.22696]
[1745237876875,5.32774,1630.1,1629.9,1.22698]
[1745237877072,11.47374,1630.1,1630.0,43.66886]
[1745237877575,11.47374,1630.1,1630.0,42.4419]
[1745237877877,11.47374,1630.1,1630.0,43.66886]
[1745237878075,10.24681,1630.1,1630.0,43.66886]
[1745237879473,7.03901,1630.1,1630.0,43.66886]
[1745237879672,6.146,1630.1,1630.0,48.66886]
[1745237879870,7.03901,1630.1,1630.0,42.4419]
[1745237880070,8.2659,1630.1,1630.0,42.4419]
[1745237881177,7.03901,1630.1,1630.0,43.66886]
[1745237882573,6.146,1630.1,1630.0,52.76296]
[1745237882879,6.146,1630.1,1630.0,49.55516]
[1745237883268,6.146,1630.1,1630.0,50.05701166]
[1745237883469,6.146,1630.1,1630.0,49.55516]
[1745237884770,6.146,1630.1,1630.0,50.03259379]
[1745237885273,6.146,1630.1,1630.0,53.24039379]
[1745237885666,6.146,1630.1,1630.0,50.03259379]
[1745237885870,6.146,1630.1,1630.0,53.24039379]
[1745237887473,3.36241088,1630.1,1630.0,53.24039379]
[1745237887675,4.9843,1630.9,1630.2,6.13372]
[1745237887873,2.12852033,1630.9,1630.7,1.22638]
[1745237888071,2.12852033,1630.9,1630.7,1.22637]
[1745237888268,8.27452033,1630.9,1630.8,2.92126]
[1745237888578,7.04820033,1630.9,1630.8,2.92126]
[1745237889981,6.146,1630.9,1630.8,43.72126]
[1745237891881,7.37229,1630.9,1630.8,42.4949]
[1745237892082,8.27449033,1630.9,1630.8,40.8]
[1745237892283,11.64899033,1630.9,1630.8,40.8]
[1745237894080,10.42270033,1630.9,1630.8,42.02636]
[1745237894283,11.64899033,1630.9,1630.8,42.4608]
[1745237894484,14.85679033,1630.9,1630.8,42.4608]
[1745237894783,1.22636,1630.8,1630.7,0.00919033]
[1745237894989,3.75346033,1630.8,1630.7,0.00919033]
[1745237895188,14.89946033,1630.8,1630.7,0.00919033]
[1745237895986,9.89946033,1630.8,1630.7,0.00919033]
[1745237898088,9.89946033,1630.8,1630.7,1.23563033]
[1745237898293,9.89946033,1630.8,1630.7,0.00919033]
[1745237898990,8.67310033,1630.8,1630.7,1.23563033]
[1745237899396,8.67310033,1630.8,1630.7,2.09483033]
[1745237899693,8.67310033,1630.8,1630.7,42.89483033]
[1745237900095,6.146,1630.8,1630.7,42.89483033]
[1745237900799,2.84785033,1631.0,1630.9,1.22629]
[1745237901001,3.75005066,1631.0,1630.9,1.22629]
[1745237901291,9.89605066,1631.0,1630.9,1.22629]
[1745237901498,9.89605066,1631.0,1630.9,42.02629]
[1745237901898,8.66979066,1631.0,1630.9,42.02629]
[1745237902098,7.05739066,1631.0,1630.9,42.02629]
[1745237902299,8.28360066,1631.0,1630.9,42.02629]
[1745237902498,9.89600066,1631.0,1630.9,42.02629]
[1745237902700,8.28360066,1631.0,1630.9,40.8]
[1745237903193,9.94120066,1631.0,1630.9,42.5013]
[1745237903399,10.76520066,1631.0,1630.9,42.5013]
[1745237904095,9.53899066,1631.0,1630.9,43.72759]
[1745237905400,10.76520066,1631.0,1630.9,43.72759]
[1745237905699,10.76520066,1631.0,1630.9,40.8]
[1745237905896,10.76520066,1631.0,1630.9,42.02629]
[1745237906092,10.76520066,1631.0,1630.9,40.8]
[1745237907399,10.76520066,1631.0,1630.9,42.02629]
[1745237907702,10.76520066,1631.0,1630.9,40.8]
[1745237911197,15.76520066,1631.0,1630.9,40.8]
[1745237911398,24.03643066,1631.0,1630.9,40.8]
[1745237912004,19.03643066,1631.0,1630.9,42.02629]
[1745237913505,14.88143066,1631.0,1630.9,42.02629]
[1745237913900,13.65522066,1631.0,1630.9,42.02629]
[1745237914300,14.88143066,1631.0,1630.9,43.63269]
[1745237914508,14.88143066,1631.0,1630.9,40.8]
[1745237915809,12.39983066,1631.0,1630.9,40.8]
[1745237916012,14.97843066,1631.0,1630.9,40.8]
[1745237918210,14.97843066,1631.0,1630.9,42.02629]
[1745237918711,14.97843066,1631.0,1630.9,43.67959]
[1745237919111,12.39983066,1631.0,1630.9,43.67959]
[1745237919512,12.39983066,1631.0,1630.9,42.4533]
[1745237919712,14.06203066,1631.0,1630.9,42.4533]
[1745237919912,14.06203066,1631.0,1630.9,40.8]
[1745237922614,1.22629,1630.9,1630.8,1.674]
[1745237922808,3.06592,1630.8,1630.4,1.22662]
[1745237923115,1.22666,1630.4,1630.3,44.5417]
[1745237923506,4.43445,1630.5,1630.4,1.22666]
[1745237923705,5.33665033,1630.5,1630.4,2.90066]
[1745237923916,5.33665033,1630.5,1630.4,1.674]
[1745237924212,13.26395033,1630.5,1630.4,1.674]
[1745237925309,7.04820033,1630.5,1630.4,2.90066]
[1745237925808,6.146,1630.5,1630.4,2.90066]
[1745237926003,3.69880967,1630.5,1630.4,48.70066]
[1745237926208,3.69880967,1630.5,1630.4,52.85466]
[1745237926611,3.69880967,1630.5,1630.4,47.85466]
[1745237928115,4.92539967,1630.5,1630.4,46.628]
[1745237928314,3.69880967,1630.5,1630.4,47.85466]
[1745237930411,3.69880967,1630.5,1630.4,52.85466]
[1745237930617,3.69880967,1630.5,1630.4,47.85466]
[1745237930814,3.69880967,1630.5,1630.4,52.85466]
[1745237931112,3.69880967,1630.5,1630.4,47.85466]
[1745237935317,4.12542033,1631.0,1630.9,1.22629]
[1745237935505,4.59240033,1631.0,1630.9,1.22629]
[1745237935705,5.49460066,1631.0,1630.9,1.22629]
[1745237936208,11.64060066,1631.0,1630.9,1.22629]
[1745237936405,10.41439066,1631.0,1630.9,2.90749]
[1745237936619,7.05739066,1631.0,1630.9,2.90749]
[1745237936823,7.05739066,1631.0,1630.9,3.72279]
[1745237937009,7.05739066,1631.0,1630.9,44.52279]
[1745237939620,7.05739066,1631.0,1630.9,43.70749]
[1745237940017,7.05739066,1631.0,1630.9,40.8]
[1745237940018,9.94150066,1631.0,1630.9,40.8]
[1745237941123,13.14930066,1631.0,1630.9,40.8]
[1745237942111,13.14930066,1631.0,1630.9,42.02629]
[1745237942517,7.05739066,1631.0,1630.9,42.02629]
[1745237942720,7.05739066,1631.0,1630.9,43.70919]
[1745237945321,7.05739066,1631.0,1630.9,51.06999]
[1745237945512,6.15519033,1631.0,1630.9,51.06999]
[1745237945920,6.15519033,1631.0,1630.9,56.06999]
[1745237947033,6.15519033,1631.0,1630.9,51.06999]
[1745237947922,7.05739066,1631.0,1630.9,44.953]
[1745237948119,7.05739066,1631.0,1630.9,46.17929]
[1745237948630,9.94250066,1631.0,1630.9,44.953]
[1745237949527,14.94250066,1631.0,1630.9,40.8]
[1745237949720,14.94250066,1631.0,1630.5,1.7188]
[1745237949721,1.22648,1630.7,1630.5,1.7188]
[1745237949920,2.92051,1630.6,1630.5,1.22656]
[1745237950229,10.74871,1630.6,1630.5,40.8]
[1745237950431,11.65091033,1630.6,1630.5,42.02659]
[1745237950633,11.65091033,1630.6,1630.5,40.8]
[1745237951335,14.85871033,1630.6,1630.5,40.8]
[1745237952428,13.63220033,1630.6,1630.5,42.02659]
[1745237952937,14.85871033,1630.6,1630.5,42.02659]
[1745237953137,14.85871033,1630.6,1630.5,40.8]
[1745237954934,14.85871033,1630.6,1630.5,42.02659]
[1745237955931,14.85871033,1630.6,1630.5,40.8]
[1745237957034,1.22666,1630.4,1630.3,1.22672]
[1745237957232,1.22679,1630.3,1630.2,1.22674]
[1745237957439,1.22688,1630.2,1630.1,1.22687]
[1745237957636,2.99418033,1630.2,1630.1,1.22687]
[1745237957940,4.73328033,1630.2,1630.1,1.22687]
[1745237958139,4.73328033,1630.2,1630.1,40.8]
[1745237958140,10.87928033,1630.2,1630.1,40.8]
[1745237958534,10.87928033,1630.2,1630.1,42.02689]
[1745237959633,9.65240033,1630.2,1630.1,42.02689]
[1745237960243,10.87921033,1630.2,1630.1,42.02689]
[1745237960740,10.87921033,1630.2,1630.1,40.8]
[1745237961740,6.146,1630.2,1630.1,42.02689]
[1745237961942,6.146,1630.2,1630.1,44.55109]
[1745237962842,6.146,1630.2,1630.1,45.35569]
[1745237964235,10.26223,1630.4,1630.3,1.22674]
[1745237964641,11.16443033,1630.4,1630.3,1.22674]
[1745237965349,11.16443033,1630.4,1630.2,6.19406]
[1745237965541,11.48894,1630.4,1630.2,6.19406]
[1745237965743,2.53070033,1630.3,1630.2,6.19406]
[1745237965937,3.75744033,1630.3,1630.2,1.7595]
[1745237966142,10.35460033,1630.3,1630.2,2.98631]